{"text_format":"3","workbook":"xlsx","n_sheets":3,"sheets":["Rapport de budget mensuel","Dépenses mensuelles","Données supplémentaires"],"not_rendered":{"charts":1,"defined_names":4,"pivot_tables":2},"read":"whole","date_system":"1900"}

{"sheet":"Rapport de budget mensuel","index":0,"n_rows":34,"n_cols":13,"rows_kept":34,"merged":[[7,1,10,1],[7,5,10,5],[7,6,10,6],[12,1,16,1],[12,5,16,5],[12,6,16,6]]}
[null,"Vue d’ensemble du budget",{"$nulls":7},"Résumé du budget"]
[null,"Solde"]
[null,"Solde prévu","(prévisions moins dépenses)",{"$nulls":3},{"$f":"D17-SUM(DétailsBudget[Coût estimé])","v":{"v":1585,"d":"1,585 €"}}]
[null,"Solde réel ","(réel moins dépenses)",{"$nulls":3},{"$f":"D11-SUM(DétailsBudget[Coût réel])","v":{"v":1740,"d":"1,740 €"}}]
[null,"Différence","(réel moins estimations)",{"$nulls":3},{"$f":"G4-G3","v":{"v":155,"d":"155 €"}}]
[]
[null,"Revenus",{"$nulls":3},"Dépenses",{"$nulls":3},"Cliquez avec le bouton droit sur le tableau croisé dynamique ci-dessous, puis cliquez sur Actualiser pour le mettre à jour"]
[null,"RÉEL","Salaire 1",{"v":5800,"d":"5,800 €"},null,"RÉEL",{"$f":"SUM(DétailsBudget[Coût réel])","v":{"v":7860,"d":"7,860 €"}}]
[null,null,"Salaire 2",{"v":2300,"d":"2,300 €"},{"$nulls":5},"Catégorie","Coût estimé ","Coût réel ","Différence "]
[null,null,"Revenus supplémentaires",{"v":1500,"d":"1,500 €"},{"$nulls":5},"Alimentation",1100,1320,{"v":-220,"d":"(220 €)"}]
[null,null,"Revenus totaux",{"$f":"SUM(D8:D10)","v":{"v":9600,"d":"9,600 €"}}]
[{"$nulls":9},"Animaux",{"v":170,"d":"170 €"},{"v":100,"d":"100 €"},{"v":70,"d":"70 €"}]
[null,"ESTIMÉ",{"$nulls":3},"ESTIMÉ",{"$f":"SUM(DétailsBudget[Coût estimé])","v":{"v":7915,"d":"7,915 €"}}]
[null,null,"Salaire 1",{"v":6000,"d":"6,000 €"},{"$nulls":5},"Assurance",{"v":900,"d":"900 €"},{"v":900,"d":"900 €"},{"v":0,"d":"0 €"}]
[null,null,"Salaire 2",{"v":1000,"d":"1,000 €"}]
[null,null,"Revenus supplémentaires",{"v":2500,"d":"2,500 €"},{"$nulls":5},"Cadeaux et dons",{"v":100,"d":"100 €"},{"v":125,"d":"125 €"},{"v":-25,"d":"-25 €"}]
[null,null,"Revenus totaux",{"$f":"SUM(D14:D16)","v":{"v":9500,"d":"9,500 €"}}]
[{"$nulls":9},"Divertissement",{"v":400,"d":"400 €"},{"v":358,"d":"358 €"},{"v":42,"d":"42 €"}]
[]
[{"$nulls":9},"Enfants",{"v":140,"d":"140 €"},{"v":140,"d":"140 €"},{"v":0,"d":"0 €"}]
[]
[{"$nulls":9},"Épargne ou investissements",{"v":200,"d":"200 €"},{"v":200,"d":"200 €"},{"v":0,"d":"0 €"}]
[]
[{"$nulls":9},"Habitation",{"v":2830,"d":"2,830 €"},{"v":2702,"d":"2,702 €"},{"v":128,"d":"128 €"}]
[]
[{"$nulls":9},"Impôts",{"v":300,"d":"300 €"},{"v":300,"d":"300 €"},{"v":0,"d":"0 €"}]
[]
[{"$nulls":9},"Prêts",{"v":200,"d":"200 €"},{"v":200,"d":"200 €"},{"v":0,"d":"0 €"}]
[]
[{"$nulls":9},"Soins de la personne",{"v":150,"d":"150 €"},{"v":140,"d":"140 €"},{"v":10,"d":"10 €"}]
[]
[{"$nulls":9},"Transport",{"v":1425,"d":"1,425 €"},{"v":1375,"d":"1,375 €"},{"v":50,"d":"50 €"}]
[]
[{"$nulls":9},"Grand Total",{"v":7915,"d":"7,915 €"},{"v":7860,"d":"7,860 €"},{"v":55,"d":"55 €"}]

{"sheet":"Dépenses mensuelles","index":1,"n_rows":62,"n_cols":7,"rows_kept":62}
[null,"Dépenses mensuelles"]
[null,"Description","Catégorie","Coût estimé","Coût réel","Différence","Vue d’ensemble du coût réel"]
[null,"Activités extrascolaires","Enfants",{"v":40,"d":"40 €"},{"v":40,"d":"40 €"},{"$f":"DétailsBudget[[#This Row],[Coût estimé]]-DétailsBudget[[#This Row],[Coût réel]]","v":{"v":0,"d":"0 €"}},{"$f":"DétailsBudget[[#This Row],[Coût réel]]","v":{"v":40,"d":"$40"}}]
[null,"Soins médicaux","Enfants",null,null,{"$f":"DétailsBudget[[#This Row],[Coût estimé]]-DétailsBudget[[#This Row],[Coût réel]]","v":{"v":0,"d":"0 €"}},{"$f":"DétailsBudget[[#This Row],[Coût réel]]","v":{"v":0,"d":"$0"}}]
[null,"Fournitures scolaires","Enfants",null,null,{"$f":"DétailsBudget[[#This Row],[Coût estimé]]-DétailsBudget[[#This Row],[Coût réel]]","v":{"v":0,"d":"0 €"}},{"$f":"DétailsBudget[[#This Row],[Coût réel]]","v":{"v":0,"d":"$0"}}]
[null,"Frais de scolarité","Enfants",{"v":100,"d":"100 €"},{"v":100,"d":"100 €"},{"$f":"DétailsBudget[[#This Row],[Coût estimé]]-DétailsBudget[[#This Row],[Coût réel]]","v":{"v":0,"d":"0 €"}},{"$f":"DétailsBudget[[#This Row],[Coût réel]]","v":{"v":100,"d":"$100"}}]
[null,"Concerts","Divertissement",{"v":50,"d":"50 €"},{"v":40,"d":"40 €"},{"$f":"DétailsBudget[[#This Row],[Coût estimé]]-DétailsBudget[[#This Row],[Coût réel]]","v":{"v":10,"d":"10 €"}},{"$f":"DétailsBudget[[#This Row],[Coût réel]]","v":{"v":40,"d":"$40"}}]
[null,"Théâtre","Divertissement",{"v":200,"d":"200 €"},{"v":150,"d":"150 €"},{"$f":"DétailsBudget[[#This Row],[Coût estimé]]-DétailsBudget[[#This Row],[Coût réel]]","v":{"v":50,"d":"50 €"}},{"$f":"DétailsBudget[[#This Row],[Coût réel]]","v":{"v":150,"d":"$150"}}]
[null,"Cinéma","Divertissement",{"v":50,"d":"50 €"},{"v":28,"d":"28 €"},{"$f":"DétailsBudget[[#This Row],[Coût estimé]]-DétailsBudget[[#This Row],[Coût réel]]","v":{"v":22,"d":"22 €"}},{"$f":"DétailsBudget[[#This Row],[Coût réel]]","v":{"v":28,"d":"$28"}}]
[null,"Musique (CD, téléchargements, etc.)","Divertissement",{"v":50,"d":"50 €"},{"v":30,"d":"30 €"},{"$f":"DétailsBudget[[#This Row],[Coût estimé]]-DétailsBudget[[#This Row],[Coût réel]]","v":{"v":20,"d":"20 €"}},{"$f":"DétailsBudget[[#This Row],[Coût réel]]","v":{"v":30,"d":"$30"}}]
[null,"Sport","Divertissement",{"v":0,"d":"0 €"},{"v":40,"d":"40 €"},{"$f":"DétailsBudget[[#This Row],[Coût estimé]]-DétailsBudget[[#This Row],[Coût réel]]","v":{"v":-40,"d":"(40 €)"}},{"$f":"DétailsBudget[[#This Row],[Coût réel]]","v":{"v":40,"d":"$40"}}]
[null,"Vidéo/DVD (achat)","Divertissement",{"v":20,"d":"20 €"},{"v":50,"d":"50 €"},{"$f":"DétailsBudget[[#This Row],[Coût estimé]]-DétailsBudget[[#This Row],[Coût réel]]","v":{"v":-30,"d":"(30 €)"}},{"$f":"DétailsBudget[[#This Row],[Coût réel]]","v":{"v":50,"d":"$50"}}]
[null,"Vidéo/DVD (location)","Divertissement",{"v":30,"d":"30 €"},{"v":20,"d":"20 €"},{"$f":"DétailsBudget[[#This Row],[Coût estimé]]-DétailsBudget[[#This Row],[Coût réel]]","v":{"v":10,"d":"10 €"}},{"$f":"DétailsBudget[[#This Row],[Coût réel]]","v":{"v":20,"d":"$20"}}]
[null,"Restaurants","Alimentation",{"v":1000,"d":"1,000 €"},{"v":1200,"d":"1,200 €"},{"$f":"DétailsBudget[[#This Row],[Coût estimé]]-DétailsBudget[[#This Row],[Coût réel]]","v":{"v":-200,"d":"(200 €)"}},{"$f":"DétailsBudget[[#This Row],[Coût réel]]","v":{"v":1200,"d":"$1,200"}}]
[null,"Courses","Alimentation",{"v":100,"d":"100 €"},{"v":120,"d":"120 €"},{"$f":"DétailsBudget[[#This Row],[Coût estimé]]-DétailsBudget[[#This Row],[Coût réel]]","v":{"v":-20,"d":"(20 €)"}},{"$f":"DétailsBudget[[#This Row],[Coût réel]]","v":{"v":120,"d":"$120"}}]
[null,"Œuvre de charité 1","Cadeaux et dons",{"v":75,"d":"75 €"},{"v":100,"d":"100 €"},{"$f":"DétailsBudget[[#This Row],[Coût estimé]]-DétailsBudget[[#This Row],[Coût réel]]","v":{"v":-25,"d":"(25 €)"}},{"$f":"DétailsBudget[[#This Row],[Coût réel]]","v":{"v":100,"d":"$100"}}]
[null,"Œuvre de charité 2","Cadeaux et dons",{"v":25,"d":"25 €"},{"v":25,"d":"25 €"},{"$f":"DétailsBudget[[#This Row],[Coût estimé]]-DétailsBudget[[#This Row],[Coût réel]]","v":{"v":0,"d":"0 €"}},{"$f":"DétailsBudget[[#This Row],[Coût réel]]","v":{"v":25,"d":"$25"}}]
[null,"Cadeau 1","Cadeaux et dons",null,null,{"$f":"DétailsBudget[[#This Row],[Coût estimé]]-DétailsBudget[[#This Row],[Coût réel]]","v":{"v":0,"d":"0 €"}},{"$f":"DétailsBudget[[#This Row],[Coût réel]]","v":{"v":0,"d":"$0"}}]
[null,"Cadeau 2","Cadeaux et dons",null,null,{"$f":"DétailsBudget[[#This Row],[Coût estimé]]-DétailsBudget[[#This Row],[Coût réel]]","v":{"v":0,"d":"0 €"}},{"$f":"DétailsBudget[[#This Row],[Coût réel]]","v":{"v":0,"d":"$0"}}]
[null,"Câble/satellite","Habitation",{"v":100,"d":"100 €"},{"v":100,"d":"100 €"},{"$f":"DétailsBudget[[#This Row],[Coût estimé]]-DétailsBudget[[#This Row],[Coût réel]]","v":{"v":0,"d":"0 €"}},{"$f":"DétailsBudget[[#This Row],[Coût réel]]","v":{"v":100,"d":"$100"}}]
[null,"Électricité","Habitation",{"v":45,"d":"45 €"},{"v":50,"d":"50 €"},{"$f":"DétailsBudget[[#This Row],[Coût estimé]]-DétailsBudget[[#This Row],[Coût réel]]","v":{"v":-5,"d":"(5 €)"}},{"$f":"DétailsBudget[[#This Row],[Coût réel]]","v":{"v":50,"d":"$50"}}]
[null,"Gaz","Habitation",{"v":300,"d":"300 €"},{"v":400,"d":"400 €"},{"$f":"DétailsBudget[[#This Row],[Coût estimé]]-DétailsBudget[[#This Row],[Coût réel]]","v":{"v":-100,"d":"(100 €)"}},{"$f":"DétailsBudget[[#This Row],[Coût réel]]","v":{"v":400,"d":"$400"}}]
[null,"Services de nettoyage","Habitation",{"v":200,"d":"200 €"},null,{"$f":"DétailsBudget[[#This Row],[Coût estimé]]-DétailsBudget[[#This Row],[Coût réel]]","v":{"v":200,"d":"200 €"}},{"$f":"DétailsBudget[[#This Row],[Coût réel]]","v":{"v":0,"d":"$0"}}]
[null,"Entretien","Habitation",{"v":200,"d":"200 €"},{"v":150,"d":"150 €"},{"$f":"DétailsBudget[[#This Row],[Coût estimé]]-DétailsBudget[[#This Row],[Coût réel]]","v":{"v":50,"d":"50 €"}},{"$f":"DétailsBudget[[#This Row],[Coût réel]]","v":{"v":150,"d":"$150"}}]
[null,"Emprunt ou loyer","Habitation",{"v":1700,"d":"1,700 €"},{"v":1700,"d":"1,700 €"},{"$f":"DétailsBudget[[#This Row],[Coût estimé]]-DétailsBudget[[#This Row],[Coût réel]]","v":{"v":0,"d":"0 €"}},{"$f":"DétailsBudget[[#This Row],[Coût réel]]","v":{"v":1700,"d":"$1,700"}}]
[null,"Gaz naturel/fioul","Habitation",null,null,{"$f":"DétailsBudget[[#This Row],[Coût estimé]]-DétailsBudget[[#This Row],[Coût réel]]","v":{"v":0,"d":"0 €"}},{"$f":"DétailsBudget[[#This Row],[Coût réel]]","v":{"v":0,"d":"$0"}}]
[null,"Service en ligne/Internet","Habitation",{"v":100,"d":"100 €"},{"v":100,"d":"100 €"},{"$f":"DétailsBudget[[#This Row],[Coût estimé]]-DétailsBudget[[#This Row],[Coût réel]]","v":{"v":0,"d":"0 €"}},{"$f":"DétailsBudget[[#This Row],[Coût réel]]","v":{"v":100,"d":"$100"}}]
[null,"Téléphone (mobile)","Habitation",{"v":60,"d":"60 €"},{"v":60,"d":"60 €"},{"$f":"DétailsBudget[[#This Row],[Coût estimé]]-DétailsBudget[[#This Row],[Coût réel]]","v":{"v":0,"d":"0 €"}},{"$f":"DétailsBudget[[#This Row],[Coût réel]]","v":{"v":60,"d":"$60"}}]
[null,"Téléphone (fixe)","Habitation",{"v":35,"d":"35 €"},{"v":39,"d":"39 €"},{"$f":"DétailsBudget[[#This Row],[Coût estimé]]-DétailsBudget[[#This Row],[Coût réel]]","v":{"v":-4,"d":"(4 €)"}},{"$f":"DétailsBudget[[#This Row],[Coût réel]]","v":{"v":39,"d":"$39"}}]
[null,"Fournitures","Habitation",{"v":40,"d":"40 €"},{"v":55,"d":"55 €"},{"$f":"DétailsBudget[[#This Row],[Coût estimé]]-DétailsBudget[[#This Row],[Coût réel]]","v":{"v":-15,"d":"(15 €)"}},{"$f":"DétailsBudget[[#This Row],[Coût réel]]","v":{"v":55,"d":"$55"}}]
[null,"Enlèvement des déchets et recyclage","Habitation",{"v":25,"d":"25 €"},{"v":22,"d":"22 €"},{"$f":"DétailsBudget[[#This Row],[Coût estimé]]-DétailsBudget[[#This Row],[Coût réel]]","v":{"v":3,"d":"3 €"}},{"$f":"DétailsBudget[[#This Row],[Coût réel]]","v":{"v":22,"d":"$22"}}]
[null,"Eau et égouts","Habitation",{"v":25,"d":"25 €"},{"v":26,"d":"26 €"},{"$f":"DétailsBudget[[#This Row],[Coût estimé]]-DétailsBudget[[#This Row],[Coût réel]]","v":{"v":-1,"d":"(1 €)"}},{"$f":"DétailsBudget[[#This Row],[Coût réel]]","v":{"v":26,"d":"$26"}}]
[null,"Santé","Assurance",{"v":400,"d":"400 €"},{"v":400,"d":"400 €"},{"$f":"DétailsBudget[[#This Row],[Coût estimé]]-DétailsBudget[[#This Row],[Coût réel]]","v":{"v":0,"d":"0 €"}},{"$f":"DétailsBudget[[#This Row],[Coût réel]]","v":{"v":400,"d":"$400"}}]
[null,"Maison","Assurance",{"v":400,"d":"400 €"},{"v":400,"d":"400 €"},{"$f":"DétailsBudget[[#This Row],[Coût estimé]]-DétailsBudget[[#This Row],[Coût réel]]","v":{"v":0,"d":"0 €"}},{"$f":"DétailsBudget[[#This Row],[Coût réel]]","v":{"v":400,"d":"$400"}}]
[null,"Vie","Assurance",{"v":100,"d":"100 €"},{"v":100,"d":"100 €"},{"$f":"DétailsBudget[[#This Row],[Coût estimé]]-DétailsBudget[[#This Row],[Coût réel]]","v":{"v":0,"d":"0 €"}},{"$f":"DétailsBudget[[#This Row],[Coût réel]]","v":{"v":100,"d":"$100"}}]
[null,"Carte de crédit 1","Prêts",{"v":200,"d":"200 €"},{"v":200,"d":"200 €"},{"$f":"DétailsBudget[[#This Row],[Coût estimé]]-DétailsBudget[[#This Row],[Coût réel]]","v":{"v":0,"d":"0 €"}},{"$f":"DétailsBudget[[#This Row],[Coût réel]]","v":{"v":200,"d":"$200"}}]
[null,"Carte de crédit 2","Prêts",null,null,{"$f":"DétailsBudget[[#This Row],[Coût estimé]]-DétailsBudget[[#This Row],[Coût réel]]","v":{"v":0,"d":"0 €"}},{"$f":"DétailsBudget[[#This Row],[Coût réel]]","v":{"v":0,"d":"$0"}}]
[null,"Carte de crédit 3","Prêts",null,null,{"$f":"DétailsBudget[[#This Row],[Coût estimé]]-DétailsBudget[[#This Row],[Coût réel]]","v":{"v":0,"d":"0 €"}},{"$f":"DétailsBudget[[#This Row],[Coût réel]]","v":{"v":0,"d":"$0"}}]
[null,"Personnel","Prêts",null,null,{"$f":"DétailsBudget[[#This Row],[Coût estimé]]-DétailsBudget[[#This Row],[Coût réel]]","v":{"v":0,"d":"0 €"}},{"$f":"DétailsBudget[[#This Row],[Coût réel]]","v":{"v":0,"d":"$0"}}]
[null,"Étudiant","Prêts",null,null,{"$f":"DétailsBudget[[#This Row],[Coût estimé]]-DétailsBudget[[#This Row],[Coût réel]]","v":{"v":0,"d":"0 €"}},{"$f":"DétailsBudget[[#This Row],[Coût réel]]","v":{"v":0,"d":"$0"}}]
[null,"Habillement","Soins de la personne",{"v":150,"d":"150 €"},{"v":140,"d":"140 €"},{"$f":"DétailsBudget[[#This Row],[Coût estimé]]-DétailsBudget[[#This Row],[Coût réel]]","v":{"v":10,"d":"10 €"}},{"$f":"DétailsBudget[[#This Row],[Coût réel]]","v":{"v":140,"d":"$140"}}]
[null,"Pressing","Soins de la personne",null,null,{"$f":"DétailsBudget[[#This Row],[Coût estimé]]-DétailsBudget[[#This Row],[Coût réel]]","v":{"v":0,"d":"0 €"}},{"$f":"DétailsBudget[[#This Row],[Coût réel]]","v":{"v":0,"d":"$0"}}]
[null,"Coiffeur/manucure","Soins de la personne",null,null,{"$f":"DétailsBudget[[#This Row],[Coût estimé]]-DétailsBudget[[#This Row],[Coût réel]]","v":{"v":0,"d":"0 €"}},{"$f":"DétailsBudget[[#This Row],[Coût réel]]","v":{"v":0,"d":"$0"}}]
[null,"Club de sport","Soins de la personne",null,null,{"$f":"DétailsBudget[[#This Row],[Coût estimé]]-DétailsBudget[[#This Row],[Coût réel]]","v":{"v":0,"d":"0 €"}},{"$f":"DétailsBudget[[#This Row],[Coût réel]]","v":{"v":0,"d":"$0"}}]
[null,"Soins médicaux","Soins de la personne",null,null,{"$f":"DétailsBudget[[#This Row],[Coût estimé]]-DétailsBudget[[#This Row],[Coût réel]]","v":{"v":0,"d":"0 €"}},{"$f":"DétailsBudget[[#This Row],[Coût réel]]","v":{"v":0,"d":"$0"}}]
[null,"Alimentation","Animaux",{"v":150,"d":"150 €"},{"v":75,"d":"75 €"},{"$f":"DétailsBudget[[#This Row],[Coût estimé]]-DétailsBudget[[#This Row],[Coût réel]]","v":{"v":75,"d":"75 €"}},{"$f":"DétailsBudget[[#This Row],[Coût réel]]","v":{"v":75,"d":"$75"}}]
[null,"Toilettage","Animaux",{"v":20,"d":"20 €"},{"v":25,"d":"25 €"},{"$f":"DétailsBudget[[#This Row],[Coût estimé]]-DétailsBudget[[#This Row],[Coût réel]]","v":{"v":-5,"d":"(5 €)"}},{"$f":"DétailsBudget[[#This Row],[Coût réel]]","v":{"v":25,"d":"$25"}}]
[null,"Soins médicaux","Animaux",null,null,{"$f":"DétailsBudget[[#This Row],[Coût estimé]]-DétailsBudget[[#This Row],[Coût réel]]","v":{"v":0,"d":"0 €"}},{"$f":"DétailsBudget[[#This Row],[Coût réel]]","v":{"v":0,"d":"$0"}}]
[null,"Jouets","Animaux",null,null,{"$f":"DétailsBudget[[#This Row],[Coût estimé]]-DétailsBudget[[#This Row],[Coût réel]]","v":{"v":0,"d":"0 €"}},{"$f":"DétailsBudget[[#This Row],[Coût réel]]","v":{"v":0,"d":"$0"}}]
[null,"Investissement","Épargne ou investissements",{"v":200,"d":"200 €"},{"v":200,"d":"200 €"},{"$f":"DétailsBudget[[#This Row],[Coût estimé]]-DétailsBudget[[#This Row],[Coût réel]]","v":{"v":0,"d":"0 €"}},{"$f":"DétailsBudget[[#This Row],[Coût réel]]","v":{"v":200,"d":"$200"}}]
[null,"Retraite","Épargne ou investissements",null,null,{"$f":"DétailsBudget[[#This Row],[Coût estimé]]-DétailsBudget[[#This Row],[Coût réel]]","v":{"v":0,"d":"0 €"}},{"$f":"DétailsBudget[[#This Row],[Coût réel]]","v":{"v":0,"d":"$0"}}]
[null,"Revenu","Impôts",{"v":300,"d":"300 €"},{"v":300,"d":"300 €"},{"$f":"DétailsBudget[[#This Row],[Coût estimé]]-DétailsBudget[[#This Row],[Coût réel]]","v":{"v":0,"d":"0 €"}},{"$f":"DétailsBudget[[#This Row],[Coût réel]]","v":{"v":300,"d":"$300"}}]
[null,"Locaux","Impôts",null,null,{"$f":"DétailsBudget[[#This Row],[Coût estimé]]-DétailsBudget[[#This Row],[Coût réel]]","v":{"v":0,"d":"0 €"}},{"$f":"DétailsBudget[[#This Row],[Coût réel]]","v":{"v":0,"d":"$0"}}]
[null,"Fonciers","Impôts",null,null,{"$f":"DétailsBudget[[#This Row],[Coût estimé]]-DétailsBudget[[#This Row],[Coût réel]]","v":{"v":0,"d":"0 €"}},{"$f":"DétailsBudget[[#This Row],[Coût réel]]","v":{"v":0,"d":"$0"}}]
[null,"Bus/taxi","Transport",{"v":100,"d":"100 €"},{"v":150,"d":"150 €"},{"$f":"DétailsBudget[[#This Row],[Coût estimé]]-DétailsBudget[[#This Row],[Coût réel]]","v":{"v":-50,"d":"(50 €)"}},{"$f":"DétailsBudget[[#This Row],[Coût réel]]","v":{"v":150,"d":"$150"}}]
[null,"Essence","Transport",{"v":450,"d":"450 €"},{"v":400,"d":"400 €"},{"$f":"DétailsBudget[[#This Row],[Coût estimé]]-DétailsBudget[[#This Row],[Coût réel]]","v":{"v":50,"d":"50 €"}},{"$f":"DétailsBudget[[#This Row],[Coût réel]]","v":{"v":400,"d":"$400"}}]
[null,"Assurance","Transport",{"v":300,"d":"300 €"},{"v":300,"d":"300 €"},{"$f":"DétailsBudget[[#This Row],[Coût estimé]]-DétailsBudget[[#This Row],[Coût réel]]","v":{"v":0,"d":"0 €"}},{"$f":"DétailsBudget[[#This Row],[Coût réel]]","v":{"v":300,"d":"$300"}}]
[null,"Licences ","Transport",{"v":25,"d":"25 €"},{"v":25,"d":"25 €"},{"$f":"DétailsBudget[[#This Row],[Coût estimé]]-DétailsBudget[[#This Row],[Coût réel]]","v":{"v":0,"d":"0 €"}},{"$f":"DétailsBudget[[#This Row],[Coût réel]]","v":{"v":25,"d":"$25"}}]
[null,"Entretien","Transport",{"v":100,"d":"100 €"},{"v":50,"d":"50 €"},{"$f":"DétailsBudget[[#This Row],[Coût estimé]]-DétailsBudget[[#This Row],[Coût réel]]","v":{"v":50,"d":"50 €"}},{"$f":"DétailsBudget[[#This Row],[Coût réel]]","v":{"v":50,"d":"$50"}}]
[null,"Parking","Transport",null,null,{"$f":"DétailsBudget[[#This Row],[Coût estimé]]-DétailsBudget[[#This Row],[Coût réel]]","v":{"v":0,"d":"0 €"}},{"$f":"DétailsBudget[[#This Row],[Coût réel]]","v":{"v":0,"d":"$0"}}]
[null,"Mensualité véhicule","Transport",{"v":450,"d":"450 €"},{"v":450,"d":"450 €"},{"$f":"DétailsBudget[[#This Row],[Coût estimé]]-DétailsBudget[[#This Row],[Coût réel]]","v":{"v":0,"d":"0 €"}},{"$f":"DétailsBudget[[#This Row],[Coût réel]]","v":{"v":450,"d":"$450"}}]
[null,"Total",null,{"$f":"SUBTOTAL(109,DétailsBudget[Coût estimé])","v":{"v":7915,"d":"7,915 €"}},{"$f":"SUBTOTAL(109,DétailsBudget[Coût réel])","v":{"v":7860,"d":"7,860 €"}},{"$f":"SUBTOTAL(109,DétailsBudget[Différence])","v":{"v":55,"d":"55 €"}}]

{"sheet":"Données supplémentaires","index":2,"n_rows":15,"n_cols":5,"rows_kept":15}
[null,"Tableau croisé dynamique pour le graphique de vue d’ensemble du budget",null,null,"Liste de recherche pour la catégorie de détails du budget"]
[null,"Catégorie","Coût",null,"Recherche de catégorie de budget"]
[null,"Alimentation",1320,null,"Enfants"]
[null,"Animaux",100,null,"Divertissement"]
[null,"Assurance",900,null,"Alimentation"]
[null,"Cadeaux et dons",125,null,"Cadeaux et dons"]
[null,"Divertissement",358,null,"Habitation"]
[null,"Enfants",140,null,"Assurance"]
[null,"Épargne ou investissements",200,null,"Prêts"]
[null,"Habitation",2702,null,"Soins de la personne"]
[null,"Impôts",300,null,"Animaux"]
[null,"Prêts",200,null,"Épargne ou investissements"]
[null,"Soins de la personne",140,null,"Impôts"]
[null,"Transport",1375,null,"Transport"]
[null,"Grand Total",7860]